bitfinex/quotes_BTCUSD_20241111
["timestamp","ask_amount","ask_price","bid_price","bid_amount"]
[1731324980771,1.9310989,82205.0,82204.0,0.001688]
[1731324981024,1.9330989,82205.0,82204.0,0.001688]
[1731324982847,2.0547459,82205.0,82204.0,0.001688]
[1731324983276,2.0547459,82205.0,82190.0,0.245023]
[1731324983277,0.007,82191.0,82190.0,0.001688]
[1731324983477,0.55965669,82191.0,82190.0,0.001688]
[1731324983677,0.55965669,82191.0,82186.0,0.048679]
[1731324983678,0.01,82188.0,82186.0,0.048679]
[1731324983884,0.01,82188.0,82187.0,0.30468129]
[1731324983885,1.51,82188.0,82187.0,0.30468129]
[1731324984040,1.51,82188.0,82187.0,0.121673]
[1731324984248,0.01,82186.0,82185.0,0.123364]
[1731324984463,0.13594221,82186.0,82185.0,0.001688]
[1731324984668,0.26188442,82186.0,82185.0,0.001688]
[1731324984863,0.13594221,82186.0,82185.0,0.001688]
[1731324985307,0.13794221,82186.0,82185.0,0.001688]
[1731324985592,0.13594221,82186.0,82185.0,0.001688]
[1731324985948,0.13094221,82186.0,82185.0,0.123364]
[1731324986149,0.13594221,82186.0,82185.0,0.123364]
[1731324986355,1.63594221,82186.0,82185.0,0.123364]
[1731324986946,1.76188442,82186.0,82185.0,0.001688]
[1731324987365,1.63594221,82186.0,82185.0,0.001688]
[1731324987562,1.63594221,82186.0,82185.0,0.123364]
[1731324987764,1.63594221,82186.0,82185.0,0.001688]
[1731324988345,1.63594221,82186.0,82185.0,0.123364]
[1731324989205,1.63594221,82186.0,82185.0,0.001688]
[1731324989325,1.76188442,82186.0,82185.0,0.001688]
[1731324990271,1.76388442,82186.0,82185.0,0.001688]
[1731324990842,1.76188442,82186.0,82185.0,0.123364]
[1731324991011,1.76188442,82186.0,82185.0,0.001688]
[1731324991261,1.76288442,82186.0,82185.0,0.001688]
[1731324991473,1.76188442,82186.0,82185.0,0.123364]
[1731324991679,1.63594221,82186.0,82185.0,0.123364]
[1731324992364,0.13594221,82186.0,82185.0,0.123364]
[1731324993049,1.63594221,82186.0,82185.0,0.123364]
[1731324993723,1.63594221,82186.0,82185.0,0.001688]
[1731324993967,1.63794221,82186.0,82185.0,0.001688]
[1731324994164,1.76188442,82186.0,82185.0,0.001688]
[1731324994879,1.63594221,82186.0,82185.0,0.001688]
[1731324995123,1.63594221,82186.0,82185.0,0.123364]
[1731324995996,1.62594221,82186.0,82185.0,0.12660567]
[1731324996244,1.62594221,82186.0,82185.0,0.39386236]
[1731324996434,0.005,82206.0,82205.0,0.121647]
[1731324996644,0.13594221,82206.0,82205.0,0.121647]
[1731324996791,1.63594221,82206.0,82205.0,0.12522924]
[1731324997612,1.63594221,82206.0,82189.0,0.18300829]
[1731324997613,0.005,82198.0,82196.0,0.24332]
[1731324997814,0.005,82198.0,82189.0,0.18300829]
[1731324997815,0.12594221,82197.0,82191.0,0.1]
[1731324998055,0.12594221,82197.0,82195.0,0.12166]
[1731324998263,0.12594221,82197.0,82196.0,0.12166]
[1731324998481,0.12594221,82197.0,82189.0,0.19499803]
[1731324998482,0.005,82194.0,82193.0,0.121664]
[1731324998766,0.005,82191.0,82190.0,0.365005]
[1731324999055,0.005,82191.0,82190.0,0.3685607]
[1731324999056,0.13094221,82191.0,82190.0,0.3685607]
[1731324999422,0.12594221,82191.0,82190.0,0.3685607]
[1731324999606,0.13094221,82191.0,82190.0,0.3685607]
[1731324999805,0.13094221,82191.0,82190.0,0.38077689]
[1731325000265,0.25688442,82191.0,82190.0,0.13744089]
[1731325000631,0.50574111,82191.0,82190.0,0.0035557]
[1731325000869,0.012,82186.0,82180.0,0.18658529]
[1731325001111,0.13794221,82186.0,82181.0,0.121681]
[1731325001368,0.012,82181.0,82180.0,0.003577]
[1731325001556,0.012,82181.0,82162.0,0.048689]
[1731325001557,0.005,82163.0,82162.0,0.12171]
[1731325001886,0.16964807,82163.0,82162.0,0.12171]
[1731325002112,1.66964807,82163.0,82162.0,0.12171]
[1731325002922,1.66964807,82163.0,82162.0,0.22171]
[1731325003749,1.79559028,82163.0,82162.0,0.22171]
[1731325004161,1.62594221,82163.0,82162.0,0.22171]
[1731325008531,1.62594221,82163.0,82162.0,0.2234]
[1731325009434,0.12594221,82163.0,82162.0,0.2234]
[1731325009884,1.62594221,82163.0,82162.0,0.2234]
[1731325013889,1.5,82163.0,82162.0,0.22600862]
[1731325014101,1.5,82163.0,82162.0,0.26067394]
[1731325014312,1.5,82163.0,82162.0,0.22966151]
[1731325015010,0.18300829,82181.0,82180.0,0.121684]
[1731325015221,0.3089505,82181.0,82180.0,0.121684]
[1731325015432,1.62594221,82181.0,82180.0,0.121684]
[1731325015648,1.62594221,82181.0,82180.0,0.12533337]
[1731325018389,1.65776331,82181.0,82180.0,0.00364937]
[1731325018579,1.62594221,82181.0,82180.0,0.12533337]
[1731325018787,1.62594221,82181.0,82180.0,0.121684]
[1731325019046,1.62594221,82181.0,82180.0,0.12531759]
[1731325019284,1.62794221,82181.0,82180.0,0.00363359]
[1731325019494,1.75893359,82181.0,82180.0,0.00363359]
[1731325019690,0.00239138,82176.0,82171.0,0.243392]
[1731325019843,0.16964807,82174.0,82173.0,0.121693]
[1731325020068,0.00239138,82170.0,82164.0,0.243415]
[1731325020263,0.00239138,82170.0,82169.0,0.1217]
[1731325020264,1.50239138,82170.0,82169.0,0.1217]
[1731325021260,1.50239138,82170.0,82165.0,0.243412]
[1731325021261,0.00239138,82169.0,82165.0,0.243412]
[1731325021496,0.16725669,82166.0,82165.0,0.465118]
[1731325021713,0.2931989,82166.0,82165.0,0.465118]
[1731325021991,0.12594221,82166.0,82165.0,0.465118]
[1731325023068,1.62594221,82166.0,82165.0,0.465118]
[1731325024586,1.62594221,82166.0,82165.0,0.221706]
[1731325024828,1.62594221,82166.0,82162.0,0.24511]
[1731325024829,0.07879138,82163.0,82162.0,0.00169]
[1731325025062,0.20473359,82163.0,82162.0,0.00169]
[1731325026235,0.20473359,82163.0,82162.0,0.00535627]
[1731325026465,0.20473359,82163.0,82162.0,0.00169]
[1731325026466,0.24116103,82163.0,82162.0,0.00169]
[1731325026729,0.20473359,82163.0,82162.0,0.00169]
[1731325027161,0.20473359,82163.0,82162.0,0.12706627]
[1731325027314,0.20473359,82163.0,82162.0,0.1234]
[1731325027519,0.20473359,82163.0,82162.0,0.12706639]
[1731325027726,0.12594221,82163.0,82162.0,0.12706639]
[1731325027935,1.62594221,82163.0,82162.0,0.12706639]
[1731325037191,1.62594221,82163.0,82162.0,0.00535639]
[1731325037390,1.70414733,82163.0,82162.0,0.00535639]
[1731325037825,1.70414733,82163.0,82162.0,0.1234]
[1731325038241,1.70414733,82163.0,82162.0,0.12657802]
[1731325038661,1.70414733,82163.0,82162.0,0.00486802]
[1731325039263,1.70414733,82163.0,82162.0,0.12657802]
[1731325039898,1.70414733,82163.0,82162.0,0.00486802]
[1731325040273,1.70414733,82163.0,82162.0,0.00169]
[1731325040477,1.70414733,82163.0,82162.0,0.12657802]
[1731325040736,1.70614733,82163.0,82162.0,0.00486802]
[1731325041007,1.70414733,82163.0,82162.0,0.00486802]
[1731325041172,2.12605523,82163.0,82162.0,0.00169]
[1731325041622,0.17464807,82152.0,82151.0,0.001688]
[1731325041863,0.30059028,82152.0,82151.0,0.001688]
[1731325042052,0.30059028,82152.0,82151.0,0.00487856]
[1731325042271,1.80059028,82152.0,82151.0,0.00487856]
[1731325042489,1.80059028,82152.0,82151.0,0.001688]
[1731325042490,1.80259028,82152.0,82151.0,0.001688]
[1731325042687,1.92949028,82152.0,82151.0,0.001688]
[1731325042885,1.92749028,82152.0,82151.0,0.001688]
[1731325043089,1.93249028,82152.0,82151.0,0.001688]
[1731325043510,1.93449028,82152.0,82151.0,0.001688]
[1731325043882,1.93249028,82152.0,82151.0,0.001688]
[1731325044519,1.93249028,82152.0,82151.0,0.123415]
[1731325044935,1.93249028,82152.0,82151.0,0.00487856]
[1731325045163,1.63094221,82152.0,82151.0,0.12660556]
[1731325045390,1.62594221,82152.0,82151.0,0.123415]
[1731325045637,1.62594221,82152.0,82151.0,0.12663052]
[1731325046272,1.62594221,82152.0,82151.0,0.13896426]
[1731325047459,1.62594221,82152.0,82148.0,0.001376]
[1731325047656,0.0461,82153.0,82151.0,0.00353707]
[1731325047971,0.0461,82153.0,82149.0,0.243457]
[1731325047972,0.0461,82153.0,82152.0,0.12526207]
[1731325048119,1.67204221,82153.0,82152.0,0.12526207]
[1731325048525,1.62594221,82153.0,82152.0,0.12526207]
[1731325050195,1.7931989,82153.0,82152.0,0.12526207]
[1731325050950,1.79559028,82153.0,82152.0,0.00353707]
[1731325051185,1.92153249,82153.0,82152.0,0.00353707]
[1731325051361,0.45643738,82138.0,82137.0,0.001376]
[1731325051587,0.67389028,82138.0,82137.0,0.001376]
[1731325052035,2.29763628,82138.0,82137.0,0.001376]
[1731325052296,2.42357849,82138.0,82137.0,0.001376]
[1731325052472,0.00239138,82122.0,82121.0,0.001376]
[1731325052614,0.29559028,82122.0,82121.0,0.001376]
[1731325052811,0.29759028,82122.0,82121.0,0.001376]
[1731325053068,1.79559028,82122.0,82121.0,0.001376]
[1731325053958,1.91936028,82122.0,82121.0,0.001376]
[1731325054114,1.75210359,82122.0,82121.0,0.001376]
[1731325054315,1.79559028,82122.0,82121.0,0.001376]
[1731325054803,2.00286028,82122.0,82121.0,0.001376]
[1731325055008,2.05256028,82122.0,82121.0,0.001376]
[1731325055292,2.17850249,82122.0,82121.0,0.001376]
[1731325056142,2.17850249,82122.0,82117.0,0.025]
[1731325056143,0.38116638,82118.0,82117.0,0.025]
[1731325056315,0.38533359,82118.0,82117.0,0.025]
[1731325056860,1.88533359,82118.0,82117.0,0.025]
[1731325057274,2.00710859,82118.0,82117.0,0.025]
[1731325057479,1.88433359,82118.0,82117.0,0.025]
[1731325057779,1.88333359,82118.0,82117.0,0.025]
[1731325059074,1.88333359,82118.0,82117.0,0.02]
[1731325059491,1.88533359,82118.0,82117.0,0.02]
[1731325059716,1.88533359,82118.0,82117.0,0.015]
[1731325061118,2.0112758,82118.0,82117.0,0.015]
[1731325061743,1.88533359,82118.0,82117.0,0.015]
[1731325063468,2.00710859,82118.0,82117.0,0.015]
[1731325064789,2.00710859,82118.0,82117.0,0.01]
[1731325064996,0.002,82103.0,82102.0,0.001376]
[1731325065205,0.2931989,82103.0,82102.0,0.001376]
[1731325065412,0.2931989,82103.0,82102.0,0.00465321]
[1731325065617,1.7931989,82103.0,82102.0,0.001376]
[1731325065830,1.79559028,82103.0,82102.0,0.001376]
[1731325065962,1.92438828,82103.0,82102.0,0.001376]
[1731325066176,0.002,82089.0,82085.0,0.18300829]
[1731325066384,0.00239138,82090.0,82085.0,0.18300829]
[1731325066385,0.16725669,82086.0,82085.0,0.18300829]
[1731325066580,0.2931989,82086.0,82080.0,0.243664]
[1731325066803,1.5,82085.0,82080.0,0.121832]
[1731325067002,1.5,82085.0,82074.0,0.18323873]
[1731325067003,1.5,82085.0,82084.0,0.121826]
[1731325068432,1.62594221,82085.0,82084.0,0.121826]
[1731325070846,0.12594221,82085.0,82084.0,0.22443462]
[1731325072258,0.12594221,82085.0,82084.0,0.30163462]
[1731325072482,0.12777039,82085.0,82084.0,0.30163462]
[1731325072770,0.00182818,82085.0,82084.0,0.30163462]
[1731325074123,0.00182818,82085.0,82084.0,0.30517535]
[1731325074551,0.00182818,82085.0,82084.0,0.22536673]
[1731325074552,0.12777039,82085.0,82084.0,0.22536673]
[1731325074983,1.62777039,82085.0,82084.0,0.22536673]
[1731325076354,1.62777039,82085.0,82084.0,0.12536673]
[1731325076355,1.65566023,82085.0,82084.0,0.12536673]
[1731325076512,1.62777039,82085.0,82084.0,0.12536673]
[1731325076666,1.62777039,82085.0,82084.0,0.00354073]
[1731325076889,1.62777039,82085.0,82084.0,0.12536673]
[1731325077283,1.62777039,82085.0,82084.0,0.12534367]
[1731325078547,1.62777039,82085.0,82084.0,0.12618867]
[1731325081379,1.62594221,82085.0,82084.0,0.12618867]
[1731325082609,1.62594221,82085.0,82084.0,0.12118867]
[1731325086030,1.75188442,82085.0,82084.0,0.12118867]
[1731325086232,1.75188442,82085.0,82084.0,0.00436267]
[1731325086434,1.62594221,82085.0,82084.0,0.12618867]
[1731325094553,1.5,82085.0,82084.0,0.35039729]
[1731325094800,0.00182799,82091.0,82090.0,0.121817]
[1731325095045,0.00182799,82091.0,82090.0,0.22442562]
[1731325095291,0.1277702,82091.0,82090.0,0.22533938]
[1731325095941,1.6277702,82091.0,82090.0,0.22533938]
[1731325097027,1.6277702,82091.0,82090.0,0.227948]
[1731325097450,1.79502689,82091.0,82090.0,0.00352238]
[1731325097669,1.79941827,82091.0,82090.0,0.00352238]
[1731325097884,1.79941827,82091.0,82087.0,0.12182]
[1731325098097,0.00239138,82085.0,82084.0,0.000845]
[1731325098329,0.29759028,82085.0,82084.0,0.000845]
[1731325098551,1.91941428,82085.0,82084.0,0.000845]
[1731325098759,1.95561587,82085.0,82084.0,0.000845]
[1731325098951,1.91941428,82085.0,82084.0,0.000845]
[1731325099178,2.04535649,82085.0,82084.0,0.000845]
[1731325099371,2.21761318,82085.0,82084.0,0.000845]
[1731325099569,2.05035649,82085.0,82084.0,0.000845]
[1731325099772,2.09055808,82085.0,82084.0,0.000845]
[1731325100145,1.96461587,82085.0,82084.0,0.000845]
[1731325100502,1.92841428,82085.0,82084.0,0.000845]
[1731325100697,1.96461587,82085.0,82084.0,0.000845]
[1731325101776,0.00239138,82077.0,82071.0,0.099619]
[1731325101894,0.16725669,82073.0,82071.0,0.099619]
[1731325102094,0.12594221,82072.0,82069.0,0.001378]
[1731325102345,0.12594221,82072.0,82071.0,0.121845]
[1731325102995,1.62594221,82072.0,82071.0,0.121845]
[1731325103948,1.62594221,82072.0,82071.0,0.221845]
[1731325104629,1.62594221,82072.0,82071.0,0.1]
[1731325104996,1.62594221,82072.0,82071.0,0.121845]
[1731325105212,1.62594221,82072.0,82071.0,0.221845]
[1731325105551,1.62594221,82072.0,82071.0,0.225401]
[1731325113115,1.62594221,82072.0,82071.0,0.003556]
[1731325113529,1.62594221,82072.0,82069.0,0.223226]
[1731325113530,1.62594221,82072.0,82069.0,0.001378]
[1731325113694,1.62594221,82072.0,82071.0,0.00362001]
[1731325113890,1.62594221,82072.0,82070.0,0.121845]
[1731325114103,1.62594221,82072.0,82071.0,0.00362001]
[1731325114307,1.62594221,82072.0,82069.0,0.101378]
[1731325114500,1.62594221,82072.0,82071.0,0.121845]
[1731325114724,1.62594221,82072.0,82071.0,0.122689]
[1731325114991,1.62594221,82072.0,82071.0,0.00446401]
[1731325115660,1.62594221,82072.0,82071.0,0.12630901]
[1731325116613,1.62594221,82072.0,82071.0,0.00446401]
[1731325117791,1.62594221,82072.0,82071.0,0.12630901]
[1731325118155,1.62594221,82072.0,82071.0,0.00446401]
[1731325118355,1.62472421,82072.0,82071.0,0.00446401]
[1731325118556,1.62672421,82072.0,82071.0,0.000844]
[1731325118741,1.76930856,82072.0,82071.0,0.000844]
[1731325118938,1.76930864,82072.0,82071.0,0.000844]
[1731325119143,1.77579823,82072.0,82071.0,0.000844]
[1731325119469,2.15960002,82072.0,82071.0,0.000844]
[1731325119902,2.19599005,82072.0,82071.0,0.000844]
[1731325120025,2.14691887,82072.0,82071.0,0.000844]
[1731325120241,0.37425738,82057.0,82056.0,0.18300829]
[1731325120446,0.62829028,82057.0,82056.0,0.18300829]
[1731325120648,0.62829028,82057.0,82046.0,0.42677029]
[1731325120649,0.6258989,82057.0,82046.0,0.42677029]
[1731325120880,0.12594221,82050.0,82049.0,0.121878]
[1731325121531,1.62594221,82050.0,82049.0,0.121878]
[1731325123016,0.12594221,82050.0,82049.0,0.196978]
[1731325123231,0.12078257,82069.0,82049.0,0.34261268]
[1731325123570,0.18300829,82069.0,82068.0,0.12185]
[1731325123721,0.18300829,82069.0,82068.0,0.21274081]
[1731325123906,1.5,82072.0,82069.0,0.22189347]
[1731325124108,1.5,82072.0,82071.0,0.22445362]
[1731325124382,0.001688,82085.0,82084.0,0.121826]
[1731325124545,0.001688,82085.0,82084.0,0.12840151]
[1731325124546,0.07981514,82085.0,82084.0,0.12840151]
[1731325124743,0.00351599,82091.0,82084.0,0.19776302]
[1731325124946,0.00351599,82091.0,82090.0,0.26204077]
[1731325125218,0.00351599,82091.0,82090.0,0.12545924]
[1731325125471,0.18300829,82106.0,82105.0,0.121795]
[1731325125472,0.17800829,82106.0,82105.0,0.121795]
[1731325125599,0.17800829,82106.0,82105.0,0.28905169]
[1731325125802,0.18300829,82116.0,82115.0,0.12178]
[1731325126257,0.18300829,82116.0,82111.0,0.24357]
[1731325126258,0.12594221,82116.0,82111.0,0.24357]
[1731325126469,0.001692,82118.0,82114.0,0.121781]
[1731325126470,0.12594221,82115.0,82114.0,0.121781]
[1731325127375,1.62594221,82115.0,82114.0,0.121781]
[1731325127829,1.5,82115.0,82114.0,0.121781]
[1731325127989,1.5,82115.0,82112.0,0.243568]
[1731325128188,1.5,82115.0,82114.0,0.16844522]
[1731325128393,1.5,82115.0,82114.0,0.26844522]
[1731325128578,1.5,82115.0,82114.0,0.33470668]
[1731325129178,0.002,82157.0,82118.0,0.05842514]
[1731325129179,0.18300829,82152.0,82118.0,0.05842514]
[1731325129403,0.18300829,82126.0,82125.0,0.221765]
[1731325129606,0.18300829,82152.0,82135.0,0.22175]
[1731325129806,0.18300829,82152.0,82151.0,0.121727]
[1731325130024,0.3089505,82152.0,82151.0,0.121727]
[1731325130232,1.8089505,82152.0,82151.0,0.121727]
[1731325130438,1.62594221,82152.0,82151.0,0.121727]
[1731325130869,1.62594221,82152.0,82151.0,0.09970584]
[1731325131068,1.62594221,82152.0,82151.0,0.10309306]
[1731325131524,1.62594221,82152.0,82120.0,0.005]
[1731325131525,0.17225669,82150.0,82120.0,0.005]
[1731325131693,0.12594221,82148.0,82142.0,0.121739]
[1731325131909,0.12594221,82148.0,82139.0,0.243487]
[1731325132047,0.12594221,82148.0,82143.0,0.121738]
[1731325132250,0.12594221,82148.0,82136.0,0.243498]
[1731325132494,0.12594221,82148.0,82133.0,0.1]
[1731325132495,0.12594221,82148.0,82144.0,0.121737]
[1731325132648,1.5,82145.0,82144.0,0.121737]
[1731325132861,1.62594221,82145.0,82144.0,0.121737]
[1731325133065,1.62594221,82145.0,82142.0,0.12174]
[1731325133263,0.12594221,82144.0,82143.0,0.121738]
[1731325133464,0.12594221,82144.0,82136.0,0.243498]
[1731325133692,0.12594221,82144.0,82140.0,0.121742]
[1731325134302,1.5,82141.0,82140.0,0.121742]
[1731325134513,1.62594221,82141.0,82140.0,0.121742]
[1731325134880,1.62594221,82141.0,82137.0,0.243495]
[1731325135080,0.12594221,82140.0,82139.0,0.121744]
[1731325135544,1.62594221,82140.0,82139.0,0.121744]
[1731325139275,1.62763021,82140.0,82139.0,0.121744]
[1731325140214,1.62763021,82140.0,82132.0,0.25366832]
[1731325140215,0.005,82126.0,82103.0,0.18300829]
[1731325140489,0.12594221,82125.0,82124.0,0.18300829]
[1731325140657,0.12594221,82125.0,82114.0,0.121781]
[1731325140658,0.121769,82123.0,82114.0,0.121781]
[1731325140814,1.5,82119.0,82115.0,0.121779]
[1731325141017,1.62594221,82119.0,82114.0,0.12178]
[1731325141199,1.63094221,82119.0,82106.0,0.243585]
[1731325141403,1.63094221,82119.0,82108.0,0.24358]
[1731325141723,1.63094221,82119.0,82104.0,0.25348214]
[1731325141724,1.75271621,82119.0,82107.0,0.121792]
[1731325141920,1.75271621,82119.0,82108.0,0.12179]
[1731325142143,1.75271621,82119.0,82104.0,0.25348214]
[1731325142144,1.75271621,82119.0,82104.0,0.243591]
[1731325142639,1.75271621,82119.0,82111.0,0.121785]
[1731325143044,1.75271621,82119.0,82108.0,0.243581]
[1731325143274,1.62594221,82119.0,82118.0,0.18020014]
[1731325144248,1.62594221,82119.0,82118.0,0.121775]
[1731325144427,0.12594221,82119.0,82118.0,0.121775]
[1731325145402,1.62594221,82119.0,82118.0,0.121775]
[1731325145596,1.62594221,82119.0,82116.0,0.243555]
[1731325145597,1.62594221,82119.0,82117.0,0.121776]
[1731325145834,0.12594221,82118.0,82113.0,0.1]
[1731325146059,0.16725669,82115.0,82094.0,0.243623]
[1731325146234,0.24855,82119.0,82103.0,0.18300829]
[1731325146235,0.16725669,82106.0,82103.0,0.18300829]
[1731325146433,0.12594221,82105.0,82104.0,0.121796]
[1731325146632,1.62594221,82105.0,82104.0,0.121796]
[1731325148875,1.62594221,82105.0,82098.0,0.1]
[1731325149088,1.62594221,82105.0,82100.0,0.1]
[1731325149296,1.62594221,82105.0,82098.0,0.1]
[1731325149297,1.62594221,82105.0,82101.0,0.243602]
[1731325149510,1.62594221,82105.0,82104.0,0.121796]
[1731325149722,1.62594221,82105.0,82099.0,0.243608]
[1731325149935,1.62594221,82105.0,82101.0,0.121801]
[1731325150142,1.62594221,82105.0,82100.0,0.343605]
[1731325150350,1.62594221,82105.0,82100.0,0.1]
[1731325150788,1.62594221,82105.0,82103.0,0.121798]
[1731325151143,1.62594221,82105.0,82095.0,0.121809]
[1731325151351,1.75188442,82105.0,82092.0,0.1]
[1731325151557,0.12594221,82099.0,82092.0,0.1]
[1731325151760,0.12794221,82099.0,82090.0,0.000844]
[1731325151981,0.121816,82091.0,82090.0,0.000844]
[1731325152167,0.12594221,82091.0,82090.0,0.000844]
[1731325152404,0.12594221,82091.0,82090.0,0.122661]
[1731325153295,0.12594221,82091.0,82090.0,0.000844]
[1731325153511,0.24775821,82091.0,82090.0,0.000844]
[1731325153717,0.12594221,82091.0,82090.0,0.122661]
[1731325153923,0.12594221,82091.0,82090.0,0.000844]
[1731325154134,0.12594221,82091.0,82090.0,0.0040445]
[1731325154360,0.12594221,82091.0,82090.0,0.000844]
[1731325155760,1.62594221,82091.0,82090.0,0.000844]
[1731325155966,1.74775821,82091.0,82090.0,0.000844]
[1731325156199,1.7704155,82091.0,82090.0,0.000844]
[1731325156406,1.74775821,82091.0,82090.0,0.000844]
[1731325156649,1.62594221,82091.0,82090.0,0.000844]
[1731325157537,1.75188442,82091.0,82090.0,0.000844]
[1731325157900,1.62594221,82091.0,82090.0,0.000844]
[1731325161486,1.62594221,82091.0,82090.0,0.0040445]
[1731325161868,1.62594221,82091.0,82090.0,0.000844]
[1731325163105,1.62594221,82091.0,82090.0,0.122661]
[1731325163309,1.62594221,82091.0,82090.0,0.00404446]
[1731325163721,1.62594221,82091.0,82090.0,0.000844]
[1731325164417,1.62594221,82091.0,82090.0,0.00404446]
[1731325164838,1.62594221,82091.0,82090.0,0.000844]
[1731325164996,1.62594221,82091.0,82090.0,0.00404446]
[1731325165203,1.74775821,82091.0,82090.0,0.000844]
[1731325166092,1.74875821,82091.0,82090.0,0.000844]
[1731325166456,2.00375821,82091.0,82090.0,0.000844]
[1731325167052,1.88194221,82091.0,82090.0,0.000844]
[1731325167574,1.88094221,82091.0,82090.0,0.000844]
[1731325168776,1.87594221,82091.0,82090.0,0.122661]
[1731325169076,1.87594221,82091.0,82070.0,0.121845]
[1731325169077,0.121835,82078.0,82070.0,0.121845]
[1731325169284,0.1678122,82076.0,82070.0,0.121846]
[1731325169508,0.1678122,82076.0,82064.0,0.24371]
[1731325169509,0.12594221,82075.0,82064.0,0.24371]
[1731325169731,0.12594221,82075.0,82058.0,0.00023047]
[1731325169732,2.00278621,82072.0,82058.0,0.00023047]
[1731325169954,2.00278621,82072.0,82061.0,0.30486729]
[1731325170176,2.00478621,82072.0,82061.0,0.18300829]
[1731325170417,2.00478621,82072.0,82062.0,0.121858]
[1731325170418,2.08068621,82072.0,82062.0,0.121858]
[1731325170645,1.95884221,82072.0,82067.0,0.12185]
[1731325170909,1.95884221,82072.0,82061.0,0.18300829]
[1731325171143,2.08068621,82072.0,82063.0,0.121857]
[1731325171384,2.08068621,82072.0,82061.0,0.1]
[1731325171385,1.95884221,82072.0,82067.0,0.121851]
[1731325171595,1.95884221,82072.0,82068.0,0.12185]
[1731325171798,1.95884221,82072.0,82063.0,0.243712]
[1731325172034,1.95884221,82072.0,82065.0,0.121854]
[1731325172244,2.08068621,82072.0,82065.0,0.121854]
[1731325172525,2.08068621,82072.0,82063.0,0.121856]
[1731325172733,2.08068621,82072.0,82061.0,0.1]
[1731325172964,2.08268621,82072.0,82062.0,0.121858]
[1731325173175,2.08068621,82072.0,82064.0,0.121855]
[1731325174235,1.95884221,82072.0,82065.0,0.243707]
[1731325174448,1.95884221,82072.0,82068.0,0.121849]
[1731325174657,1.95884221,82072.0,82063.0,0.243712]
[1731325174868,1.95884221,82072.0,82067.0,0.12185]
[1731325175293,1.62594221,82072.0,82071.0,0.122689]
[1731325175492,1.62594221,82072.0,82071.0,0.15459359]
[1731325175694,1.62594221,82072.0,82071.0,0.12589409]
[1731325175867,1.62594221,82072.0,82071.0,0.00404909]
[1731325176065,1.62594221,82072.0,82071.0,0.12589409]
[1731325176433,1.62594221,82072.0,82071.0,0.00404909]
[1731325176816,1.62594221,82072.0,82071.0,0.122689]
[1731325177025,1.62594221,82072.0,82071.0,0.12594932]
[1731325177465,1.62594221,82072.0,82071.0,0.00410432]
[1731325177466,2.00688442,82072.0,82071.0,0.00410432]
[1731325177636,2.00688442,82072.0,82071.0,0.000844]
[1731325178320,1.62594221,82072.0,82071.0,0.000844]
[1731325178708,1.63094221,82072.0,82071.0,0.000844]
[1731325178921,1.75278621,82072.0,82071.0,0.000844]
[1731325181412,1.63094221,82072.0,82071.0,0.000844]
[1731325182057,1.62594221,82072.0,82071.0,0.122689]
[1731325182248,1.62444421,82072.0,82071.0,0.12594932]
[1731325182460,1.62444421,82072.0,82071.0,0.122689]
[1731325182658,1.62444421,82072.0,82071.0,0.12594932]
[1731325183213,1.62444421,82072.0,82071.0,0.00410432]
[1731325183533,1.62444421,82072.0,82071.0,0.000844]
[1731325183740,1.62444421,82072.0,82071.0,0.122689]
[1731325184384,1.62444421,82072.0,82071.0,0.12594932]
[1731325190606,0.12444421,82072.0,82071.0,0.12594932]
[1731325191143,1.62444421,82072.0,82071.0,0.12594932]
[1731325192736,1.62444421,82072.0,82071.0,0.122689]
[1731325196941,1.59944421,82072.0,82071.0,0.122689]
[1731325203135,1.60113221,82072.0,82071.0,0.122689]
[1731325205004,0.001688,82072.0,82071.0,0.25449403]
[1731325205211,0.001688,82090.0,82089.0,0.121819]
[1731325205436,1.501688,82090.0,82089.0,0.121819]
[1731325206573,1.62763021,82090.0,82072.0,0.1]
[1731325206847,0.1678122,82082.0,82074.0,0.243682]
[1731325207054,0.1678122,82088.0,82087.0,0.121821]
[1731325207292,1.501688,82090.0,82089.0,0.121819]
[1731325207677,1.501688,82090.0,82089.0,0.221819]
[1731325207884,0.001688,82090.0,82089.0,0.221819]
[1731325208586,0.001688,82090.0,82089.0,0.226819]
[1731325209374,0.001688,82090.0,82089.0,0.221819]
[1731325210839,0.001688,82090.0,82089.0,0.226819]
[1731325211040,0.001688,82090.0,82089.0,0.33672403]
[1731325211608,0.001688,82090.0,82089.0,0.304919]
[1731325211803,0.001688,82090.0,82089.0,0.299919]
[1731325212629,0.001688,82090.0,82089.0,0.221819]
[1731325217547,0.101688,82090.0,82089.0,0.221819]
[1731325220194,0.22763021,82090.0,82089.0,0.221819]
[1731325223028,1.72763021,82090.0,82089.0,0.221819]
[1731325225955,0.22763021,82090.0,82089.0,0.221819]
[1731325226673,1.72763021,82090.0,82089.0,0.122663]
[1731325229032,1.72763021,82090.0,82089.0,0.222663]
[1731325229243,0.22763021,82090.0,82089.0,0.222663]
[1731325229449,0.101688,82090.0,82089.0,0.222663]
[1731325233696,0.22763021,82090.0,82089.0,0.222663]
[1731325234275,1.72763021,82090.0,82089.0,0.222663]
[1731325243677,0.22763021,82090.0,82089.0,0.222663]
[1731325244094,1.72763021,82090.0,82089.0,0.222663]
[1731325250101,1.82763021,82090.0,82089.0,0.222663]
[1731325251052,0.32763021,82090.0,82089.0,0.222663]
[1731325251283,0.201688,82090.0,82089.0,0.222663]
[1731325251516,0.201688,82090.0,82089.0,0.300563]
[1731325252189,0.201688,82090.0,82089.0,0.323563]
[1731325255073,0.201688,82090.0,82089.0,0.35982204]
[1731325256287,1.701688,82090.0,82089.0,0.35982204]
[1731325256747,1.701688,82090.0,82089.0,0.36482204]
[1731325257397,1.628596,82090.0,82089.0,0.333563]
[1731325257597,1.506776,82090.0,82089.0,0.333563]
[1731325257797,0.18300829,82108.0,82107.0,0.121792]
[1731325258286,0.18300829,82117.0,82116.0,0.121778]
[1731325258504,0.3089505,82117.0,82116.0,0.121778]
[1731325258910,1.62594221,82117.0,82116.0,0.121778]
[1731325261785,1.62763021,82117.0,82116.0,0.121778]
[1731325275498,1.62763021,82117.0,82109.0,0.243576]
[1731325275723,0.12594221,82116.0,82114.0,0.12178]
[1731325275931,0.12594221,82116.0,82115.0,0.12178]